[Event "FIDE WYCC Girls U18 2023"]
[Site "Montesilvano"]
[Date "2023.11.13"]
[Round "1.15"]
[White "Oviedo Acosta, Paula"]
[Black "Sevcikova, Lucia"]
[Result "0-1"]
[ECO "C07"]
[WhiteElo "1639"]
[BlackElo "2047"]
[Annotator "NA"]
[PlyCount "90"]
[EventDate "2023.11.13"]
[EventType "swiss"]
[EventCountry "ITA"]
[SourceTitle "playchess.com"]
[Source "ChessBase"]
[SourceQuality "1"]
[TimeControl "40/5400+30:1800+30"]

1. e4 {[%emt 0:00:04]} e6 {[%emt 0:00:05]} 2. d4 {[%emt 0:00:11]} d5 {[%emt 0:00:08]} 3. Nd2 {[%emt 0:00:24]} c5 {[%emt 0:00:10]} 4. exd5 {[%emt 0:00:40]} Qxd5 {[%emt 0:00:19]} 5. Ngf3 {[%emt 0:00:34]} cxd4 {[%emt 0:00:16]} 6. Bc4 {[%emt 0:00:27]} Qd7 {[%emt 0:00:13]} 7. O-O {[%emt 0:01:33]} Nc6 {[%emt 0:00:31]} 8. Nb3 {[%emt 0:01:26]} a6 {[%emt 0:00:41]} 9. Re1 {[%emt 0:02:50]} Bd6 {[%emt 0:08:07]} 10. Nbxd4 {[%emt 0:04:38]} Nge7 {[%emt 0:04:59]} 11. Bf1 {[%emt 0:07:44]} O-O {[%emt 0:05:12]} 12. c4 {[%emt 0:09:09]} Rd8 {[%emt 0:11:33]} 13. Bg5 {[%emt 0:06:04]} Nxd4 {[%emt 0:13:06]} 14. Qxd4 {[%emt 0:06:45]} f6 {[%emt 0:05:31]} 15. Be3 {[%emt 0:07:50]} Nf5 {[%emt 0:02:42]} 16. Qc3 {[%emt 0:04:18]} Nxe3 {[%emt 0:01:40]} 17. Rxe3 {[%emt 0:00:12]} Qc7 {[%emt 0:03:05]} 18. Rd3 {[%emt 0:03:09]} b6 {[%emt 0:05:38]} 19. Re1 {[%emt 0:03:40]} e5 {[%emt 0:03:43]} 20. Kh1 {[%emt 0:09:21]} Bb7 {[%emt 0:05:13]} 21. Nh4 {[%emt 0:04:57]} e4 {[%emt 0:06:37]} 22. Rh3 {[%emt 0:08:09]} Bf4 {[%emt 0:03:52]} 23. Qc2 {[%emt 0:06:31]} Rd2 {[%emt 0:02:27]} 24. Qb3 {[%emt 0:00:28]} Qc5 {[%emt 0:01:14]} 25. Rhe3 {[%emt 0:03:24]} Bxe3 {[%emt 0:00:59]} 26. fxe3 {[%emt 0:00:49]} g5 {[%emt 0:01:29]} 27. Qc3 {[%emt 0:00:26]} Rd6 {[%emt 0:00:26]} 28. b4 {[%emt 0:01:06]} Qc8 {[%emt 0:01:51]} 29. c5 {[%emt 0:01:47]} bxc5 {[%emt 0:02:35]} 30. bxc5 {[%emt 0:01:23]} Rc6 {[%emt 0:01:41]} 31. Qb3+ {[%emt 0:01:08]} Kh8 {[%emt 0:02:37]} 32. Nf5 {[%emt 0:01:10]} Qxf5 {[%emt 0:00:36]} 33. Qxb7 {[%emt 0:00:10]} Rac8 {[%emt 0:01:07]} 34. Bxa6 {[%emt 0:01:24]} Rxc5 {[%emt 0:02:57]} 35. Qb2 {[%emt 0:00:49]} Rc2 {[%emt 0:01:58]} 36. Qa1 {[%emt 0:01:21]} Qf2 {[%emt 0:00:27]} 37. Bf1 {[%emt 0:01:29]} Rxa2 {[%emt 0:01:24]} 38. Qb1 {[%emt 0:01:11]} Rb2 {[%emt 0:00:55]} 39. Qa1 {[%emt 0:00:17]} Kg7 {[%emt 0:00:37]} 40. Rd1 {[%emt 0:00:00]} Rd2 {[%emt 0:00:00]} 41. Qa7+ {[%emt 0:03:57]} Kg6 {[%emt 0:02:51]} 42. Rb1 {[%emt 0:00:35]} Rdc2 {[%emt 0:01:11]} 43. Qd4 {[%emt 0:03:42]} Rc1 {[%emt 0:01:50]} 44. Qxe4+ {[%emt 0:00:15]} Kh6 {[%emt 0:00:33]} 45. Qd3 {[%emt 0:02:43]} R8c2 {[%emt 0:01:44]} 0-1

[Event "FIDE WYCC Girls U18 2023"]
[Site "Montesilvano"]
[Date "2023.11.13"]
[Round "1.17"]
[White "Ajradinoska, Indzi"]
[Black "Obada, Ema"]
[Result "1/2-1/2"]
[ECO "A46"]
[WhiteElo "1594"]
[BlackElo "2023"]
[Annotator "NA"]
[PlyCount "121"]
[EventDate "2023.11.13"]
[EventType "swiss"]
[EventCountry "ITA"]
[SourceTitle "playchess.com"]
[Source "ChessBase"]
[SourceQuality "1"]
[TimeControl "40/5400+30:1800+30"]

1. d4 {[%emt 0:00:03]} Nf6 {[%emt 0:00:07]} 2. Nf3 {[%emt 0:00:07]} e6 {[%emt 0:00:10]} 3. e3 {[%emt 0:00:07]} c5 {[%emt 0:00:10]} 4. b3 {[%emt 0:01:03]} b6 {[%emt 0:00:34]} 5. Bb2 {[%emt 0:00:08]} Bb7 {[%emt 0:00:35]} 6. Nbd2 {[%emt 0:00:37]} Be7 {[%emt 0:01:08]} 7. Bd3 {[%emt 0:00:23]} d6 {[%emt 0:01:42]} 8. O-O {[%emt 0:01:26]} Nbd7 {[%emt 0:02:22]} 9. Re1 {[%emt 0:04:20]} O-O {[%emt 0:00:47]} 10. Rc1 {[%emt 0:01:35]} Rc8 {[%emt 0:08:42]} 11. Qe2 {[%emt 0:07:26]} Qc7 {[%emt 0:27:16]} 12. c3 {[%emt 0:02:37]} d5 {[%emt 0:05:20]} 13. e4 {[%emt 0:05:59]} dxe4 {[%emt 0:03:34]} 14. Nxe4 {[%emt 0:00:39]} Nxe4 {[%emt 0:07:44]} 15. Bxe4 {[%emt 0:00:13]} Bxe4 {[%emt 0:01:29]} 16. Qxe4 {[%emt 0:00:09]} c4 {[%emt 0:09:00]} 17. d5 {[%emt 0:08:20]} Nf6 {[%emt 0:04:27]} 18. Qxc4 {[%emt 0:04:11]} Qb7 {[%emt 0:00:33]} 19. Qe2 {[%emt 0:01:57]} Qxd5 {[%emt 0:03:33]} 20. c4 {[%emt 0:02:11]} Qh5 {[%emt 0:03:09]} 21. h3 {[%emt 0:05:22]} Rfd8 {[%emt 0:05:30]} 22. Rcd1 {[%emt 0:01:10]} h6 {[%emt 0:06:38]} 23. Rxd8+ {[%emt 0:05:06]} Rxd8 {[%emt 0:00:28]} 24. Rd1 {[%emt 0:00:19]} Rc8 {[%emt 0:03:08]} 25. Bxf6 Bxf6 {[%emt 0:00:41]} 26. Rd7 {[%emt 0:04:40]} Qa5 {[%emt 0:01:20]} 27. Qd2 {[%emt 0:03:37]} Bc3 {[%emt 0:01:36]} 28. Rd8+ Rxd8 {[%emt 0:00:13]} 29. Qxd8+ {[%emt 0:00:07]} Kh7 {[%emt 0:00:03]} 30. Qd3+ {[%emt 0:00:06]} g6 {[%emt 0:00:12]} 31. Nh2 {[%emt 0:04:00]} Bb2 {[%emt 0:00:39]} 32. Qb1 {[%emt 0:00:54]} Bf6 {[%emt 0:02:08]} 33. Ng4 {[%emt 0:04:14]} Bg7 {[%emt 0:00:16]} 34. Ne3 {[%emt 0:03:38]} h5 {[%emt 0:00:59]} 35. Nf1 {[%emt 0:00:48]} Bd4 {[%emt 0:00:29]} 36. Qc2 {[%emt 0:01:32]} Kg7 {[%emt 0:00:33]} 37. Nd2 {[%emt 0:01:41]} Bf6 {[%emt 0:00:50]} 38. Nf3 {[%emt 0:02:50]} Kf8 {[%emt 0:00:44]} 39. Nd2 {[%emt 0:03:57]} Ke7 {[%emt 0:00:22]} 40. Nf3 {[%emt 0:00:00]} Ke8 {[%emt 0:00:00]} 41. Nd2 {[%emt 0:01:51]} Qe5 {[%emt 0:03:47]} 42. Nf3 {[%emt 0:01:25]} Qa1+ {[%emt 0:00:32]} 43. Kh2 {[%emt 0:00:22]} Kf8 {[%emt 0:09:44]} 44. Qd2 {[%emt 0:01:43]} Kg7 {[%emt 0:02:53]} 45. Qc2 {[%emt 0:00:35]} Bb2 {[%emt 0:06:10]} 46. a4 {[%emt 0:01:19]} Ba3 {[%emt 0:01:42]} 47. Qd2 {[%emt 0:03:39]} Bb2 {[%emt 0:01:23]} 48. Qc2 {[%emt 0:00:27]} Bf6 {[%emt 0:00:23]} 49. c5 {[%emt 0:01:33]} bxc5 {[%emt 0:00:17]} 50. Qxc5 {[%emt 0:00:29]} a6 {[%emt 0:00:29]} 51. Qa5 {[%emt 0:01:26]} Qf1 {[%emt 0:00:36]} 52. Qd2 {[%emt 0:00:41]} Qb1 {[%emt 0:02:02]} 53. Qe3 {[%emt 0:04:50]} Qc2 {[%emt 0:01:50]} 54. Nd4 {[%emt 0:00:59]} Qb2 {[%emt 0:00:51]} 55. Nf3 {[%emt 0:03:38]} Bc3 {[%emt 0:02:40]} 56. Qa7 {[%emt 0:00:44]} Qxb3 {[%emt 0:00:46]} 57. Qxa6 {[%emt 0:00:58]} Qb4 {[%emt 0:01:44]} 58. Qb5 {[%emt 0:02:46]} Qf4+ {[%emt 0:00:43]} 59. Kg1 {[%emt 0:00:37]} Qc1+ {[%emt 0:00:14]} 60. Kh2 {[%emt 0:00:07]} Qf4+ {[%emt 0:00:39]} 61. Kg1 {[%emt 0:00:07]} 1/2-1/2

[Event "FIDE WYCC Girls U18 2023"]
[Site "Montesilvano"]
[Date "2023.11.13"]
[Round "1.18"]
[White "Trifoi, Mihaela-Ioana"]
[Black "Zubova, Darja"]
[Result "1-0"]
[ECO "B13"]
[WhiteElo "2021"]
[BlackElo "1582"]
[Annotator "NA"]
[PlyCount "87"]
[EventDate "2023.11.13"]
[EventType "swiss"]
[EventCountry "ITA"]
[SourceTitle "playchess.com"]
[Source "ChessBase"]
[SourceQuality "1"]
[TimeControl "40/5400+30:1800+30"]

1. e4 {[%emt 0:00:05]} c6 {[%emt 0:00:11]} 2. d4 {[%emt 0:00:12]} d5 {[%emt 0:00:20]} 3. exd5 {[%emt 0:03:31]} cxd5 {[%emt 0:02:07]} 4. Bd3 {[%emt 0:00:13]} Nc6 {[%emt 0:00:24]} 5. c3 {[%emt 0:00:06]} Qc7 {[%emt 0:00:37]} 6. h3 {[%emt 0:01:59]} g6 {[%emt 0:02:08]} 7. Nf3 {[%emt 0:00:08]} Bf5 {[%emt 0:01:47]} 8. Bxf5 {[%emt 0:08:12]} gxf5 {[%emt 0:00:16]} 9. O-O {[%emt 0:03:11]} e6 {[%emt 0:02:38]} 10. Re1 {[%emt 0:06:33]} Nf6 {[%emt 0:07:30]} 11. c4 {[%emt 0:01:15]} O-O-O {[%emt 0:15:38]} 12. Bg5 {[%emt 0:05:05]} Be7 {[%emt 0:07:27]} 13. Na3 {[%emt 0:02:12]} a6 {[%emt 0:04:26]} 14. Rc1 {[%emt 0:02:45]} Ne4 {[%emt 0:15:48]} 15. Bxe7 {[%emt 0:01:56]} Qxe7 {[%emt 0:00:25]} 16. cxd5 {[%emt 0:00:17]} Rxd5 {[%emt 0:00:54]} 17. Ne5 {[%emt 0:00:23]} Rxe5 {[%emt 0:01:58]} 18. dxe5 {[%emt 0:00:16]} Kb8 {[%emt 0:03:52]} 19. Nc4 {[%emt 0:10:07]} Qh4 {[%emt 0:06:35]} 20. Qe2 {[%emt 0:15:52]} Rg8 {[%emt 0:02:52]} 21. Qe3 {[%emt 0:00:26]} Nb4 {[%emt 0:03:17]} 22. Nd6 {[%emt 0:06:30]} Nd3 {[%emt 0:03:30]} 23. Nxe4 {[%emt 0:12:54]} fxe4 {[%emt 0:00:59]} 24. Kf1 {[%emt 0:09:10]} Nxc1 {[%emt 0:02:01]} 25. Qxc1 {[%emt 0:00:37]} Rc8 {[%emt 0:06:09]} 26. Qd2 {[%emt 0:01:06]} e3 {[%emt 0:02:39]} 27. Qxe3 {[%emt 0:02:06]} Qc4+ {[%emt 0:00:21]} 28. Kg1 {[%emt 0:00:21]} Qxa2 {[%emt 0:00:52]} 29. Qe4 Qxb2 {[%emt 0:04:08]} 30. Qxh7 {[%emt 0:02:12]} Qd2 {[%emt 0:01:27]} 31. Qe4 {[%emt 0:01:15]} Rc4 {[%emt 0:00:29]} 32. Qe3 {[%emt 0:01:13]} Qd5 {[%emt 0:00:59]} 33. g3 {[%emt 0:00:46]} a5 {[%emt 0:00:12]} 34. h4 {[%emt 0:00:09]} a4 {[%emt 0:00:28]} 35. h5 {[%emt 0:00:05]} Rc8 {[%emt 0:01:21]} 36. h6 {[%emt 0:00:59]} Qb3 {[%emt 0:01:00]} 37. Qe4 {[%emt 0:01:37]} a3 {[%emt 0:00:35]} 38. h7 {[%emt 0:01:11]} Qd5 {[%emt 0:00:23]} 39. Qf4 {[%emt 0:00:57]} Qd3 {[%emt 0:00:23]} 40. Qxf7 {[%emt 0:00:00]} Rh8 {[%emt 0:00:00]} 41. Qg8+ {[%emt 0:01:12]} Rxg8 {[%emt 0:01:12]} 42. hxg8=Q+ {[%emt 0:00:10]} Ka7 {[%emt 0:00:09]} 43. Qxe6 {[%emt 0:02:20]} Qc3 {[%emt 0:03:11]} 44. Rb1 1-0

[Event "FIDE WYCC Girls U18 2023"]
[Site "Montesilvano"]
[Date "2023.11.13"]
[Round "1.19"]
[White "Ivanovic, Tara"]
[Black "Margadgua Erdenebayar"]
[Result "1/2-1/2"]
[ECO "B92"]
[WhiteElo "1575"]
[BlackElo "2013"]
[Annotator "NA"]
[PlyCount "90"]
[EventDate "2023.11.13"]
[EventType "swiss"]
[EventCountry "ITA"]
[SourceTitle "playchess.com"]
[Source "ChessBase"]
[SourceQuality "1"]
[TimeControl "40/5400+30:1800+30"]

1. e4 {[%emt 0:00:05]} c5 {[%emt 0:00:13]} 2. Nf3 {[%emt 0:00:09]} d6 {[%emt 0:00:24]} 3. d4 {[%emt 0:00:13]} cxd4 {[%emt 0:00:12]} 4. Nxd4 {[%emt 0:00:07]} Nf6 {[%emt 0:00:07]} 5. Nc3 {[%emt 0:00:13]} a6 {[%emt 0:00:32]} 6. Be2 {[%emt 0:00:28]} e5 {[%emt 0:00:23]} 7. Nf5 {[%emt 0:01:52]} h6 {[%emt 0:08:28]} 8. Ne3 {[%emt 0:07:16]} Be6 {[%emt 0:03:45]} 9. O-O {[%emt 0:04:12]} Be7 {[%emt 0:04:32]} 10. f3 {[%emt 0:10:34]} O-O {[%emt 0:03:53]} 11. Ned5 {[%emt 0:15:48]} Bxd5 {[%emt 0:05:05]} 12. Nxd5 {[%emt 0:01:20]} Nxd5 {[%emt 0:00:08]} 13. Qxd5 {[%emt 0:00:28]} Nc6 {[%emt 0:01:00]} 14. Be3 {[%emt 0:03:45]} Bg5 {[%emt 0:12:23]} 15. Bxg5 {[%emt 0:13:21]} Qxg5 {[%emt 0:02:17]} 16. Kh1 {[%emt 0:03:47]} Rad8 {[%emt 0:03:01]} 17. Rfd1 {[%emt 0:07:14]} Nd4 {[%emt 0:07:51]} 18. Bd3 {[%emt 0:01:56]} Rd7 {[%emt 0:00:11]} 19. c3 {[%emt 0:02:19]} Ne6 {[%emt 0:00:57]} 20. g3 {[%emt 0:04:39]} Rc8 {[%emt 0:12:27]} 21. Bc2 {[%emt 0:04:01]} Rc5 {[%emt 0:07:10]} 22. Qd2 {[%emt 0:01:27]} Qd8 {[%emt 0:02:32]} 23. Bb3 {[%emt 0:02:22]} Nc7 {[%emt 0:00:47]} 24. Qe3 {[%emt 0:01:43]} b6 {[%emt 0:01:10]} 25. Rd2 {[%emt 0:06:34]} Kh8 {[%emt 0:10:52]} 26. Rad1 {[%emt 0:01:53]} Qf8 {[%emt 0:07:02]} 27. Kg2 {[%emt 0:01:35]} g6 {[%emt 0:01:12]} 28. Ba4 {[%emt 0:01:34]} b5 {[%emt 0:02:13]} 29. Bb3 {[%emt 0:00:07]} Rc6 {[%emt 0:01:06]} 30. Bd5 {[%emt 0:00:51]} Nxd5 {[%emt 0:00:35]} 31. Rxd5 {[%emt 0:00:08]} Rdc7 {[%emt 0:01:15]} 32. Qd2 {[%emt 0:00:34]} b4 {[%emt 0:01:54]} 33. Rxd6 {[%emt 0:01:28]} bxc3 {[%emt 0:00:38]} 34. Rd8 {[%emt 0:02:10]} cxd2 {[%emt 0:00:21]} 35. Rxf8+ {[%emt 0:00:02]} Kg7 {[%emt 0:00:00]} 36. Rd8 {[%emt 0:00:11]} Rc2 {[%emt 0:01:08]} 37. R8xd2 {[%emt 0:00:17]} Kf6 {[%emt 0:00:38]} 38. Kf2 {[%emt 0:00:52]} Ke7 {[%emt 0:00:34]} 39. Ke3 {[%emt 0:00:32]} f6 {[%emt 0:00:28]} 40. Rxc2 {[%emt 0:00:00]} Rxc2 {[%emt 0:00:00]} 41. Rd2 {[%emt 0:00:48]} Rc1 {[%emt 0:00:17]} 42. b3 {[%emt 0:05:45]} Rc3+ {[%emt 0:03:15]} 43. Kf2 {[%emt 0:00:08]} Ke6 {[%emt 0:05:55]} 44. h4 {[%emt 0:05:10]} h5 {[%emt 0:00:55]} 45. Rb2 {[%emt 0:06:46]} Kd6 {[%emt 0:07:46]} 1/2-1/2

[Event "FIDE WYCC Girls U18 2023"]
[Site "Montesilvano"]
[Date "2023.11.13"]
[Round "1.20"]
[White "Dakic, Marta"]
[Black "Sasvatha A"]
[Result "1-0"]
[ECO "B12"]
[WhiteElo "2013"]
[BlackElo "1568"]
[Annotator "NA"]
[PlyCount "77"]
[EventDate "2023.11.13"]
[EventType "swiss"]
[EventCountry "ITA"]
[SourceTitle "playchess.com"]
[Source "ChessBase"]
[SourceQuality "1"]
[TimeControl "40/5400+30:1800+30"]

1. e4 {[%emt 0:00:09]} c6 {[%emt 0:00:10]} 2. d4 {[%emt 0:00:23]} d5 {[%emt 0:00:08]} 3. f3 {[%emt 0:00:29]} dxe4 {[%emt 0:03:20]} 4. fxe4 {[%emt 0:00:10]} e5 {[%emt 0:01:08]} 5. Nf3 {[%emt 0:00:23]} Be6 {[%emt 0:16:41]} 6. c3 {[%emt 0:08:42]} exd4 {[%emt 0:07:50]} 7. cxd4 {[%emt 0:01:03]} h6 {[%emt 0:02:22]} 8. Nc3 {[%emt 0:04:57]} Nf6 {[%emt 0:01:45]} 9. Bd3 {[%emt 0:05:17]} g5 {[%emt 0:04:33]} 10. O-O {[%emt 0:09:51]} g4 {[%emt 0:08:57]} 11. d5 {[%emt 0:01:19]} gxf3 {[%emt 0:17:24]} 12. Qxf3 {[%emt 0:03:27]} cxd5 {[%emt 0:20:25]} 13. Bb5+ {[%emt 0:06:27]} Nc6 {[%emt 0:01:48]} 14. Qxf6 {[%emt 0:02:56]} Qxf6 {[%emt 0:00:23]} 15. Rxf6 {[%emt 0:00:06]} d4 {[%emt 0:03:39]} 16. Nd5 {[%emt 0:01:52]} Kd7 {[%emt 0:00:17]} 17. b3 {[%emt 0:05:09]} Bg7 {[%emt 0:01:13]} 18. Rf2 {[%emt 0:00:09]} f5 {[%emt 0:02:35]} 19. Nf4 {[%emt 0:01:33]} fxe4 {[%emt 0:01:56]} 20. Nxe6 {[%emt 0:00:10]} Kxe6 {[%emt 0:00:02]} 21. Bc4+ {[%emt 0:00:51]} Kd6 {[%emt 0:00:07]} 22. Ba3+ {[%emt 0:00:12]} Ke5 {[%emt 0:00:59]} 23. Raf1 {[%emt 0:04:25]} d3 {[%emt 0:01:03]} 24. Rf5+ {[%emt 0:02:33]} Kd4 {[%emt 0:00:06]} 25. Bb2+ {[%emt 0:00:03]} Ke3 {[%emt 0:00:08]} 26. Bxg7 {[%emt 0:00:22]} Rh7 {[%emt 0:01:44]} 27. Bc3 {[%emt 0:00:21]} Nd4 {[%emt 0:00:40]} 28. Bxd4+ {[%emt 0:01:19]} Kxd4 {[%emt 0:00:07]} 29. Rd5+ {[%emt 0:00:48]} Kc3 {[%emt 0:00:29]} 30. Re1 {[%emt 0:10:03]} Re7 {[%emt 0:02:15]} 31. Bxd3 {[%emt 0:00:09]} Rae8 {[%emt 0:00:44]} 32. Bb5 {[%emt 0:00:42]} Rf8 {[%emt 0:00:11]} 33. Re3+ {[%emt 0:03:03]} Kb2 {[%emt 0:00:56]} 34. Re2+ {[%emt 0:01:51]} Kc3 {[%emt 0:00:12]} 35. Bd3 {[%emt 0:02:27]} Rf4 {[%emt 0:01:08]} 36. Rc2+ {[%emt 0:00:12]} Kb4 {[%emt 0:00:09]} 37. Rb5+ {[%emt 0:00:07]} Ka3 {[%emt 0:00:06]} 38. Ra5+ {[%emt 0:00:05]} Kb4 {[%emt 0:00:05]} 39. Ra4# 1-0

[Event "FIDE WYCC Girls U18 2023"]
[Site "Montesilvano"]
[Date "2023.11.13"]
[Round "1.21"]
[White "Gonzalez Romo, Greshya Jocelyn"]
[Black "Sosovickova, Jana"]
[Result "0-1"]
[ECO "C78"]
[WhiteElo "1494"]
[BlackElo "2013"]
[Annotator "NA"]
[PlyCount "98"]
[EventDate "2023.11.13"]
[EventType "swiss"]
[EventCountry "ITA"]
[SourceTitle "playchess.com"]
[Source "ChessBase"]
[SourceQuality "1"]
[TimeControl "40/5400+30:1800+30"]

1. e4 {[%emt 0:00:03]} e5 {[%emt 0:00:04]} 2. Nf3 {[%emt 0:00:08]} Nc6 {[%emt 0:00:04]} 3. Bb5 {[%emt 0:00:14]} a6 {[%emt 0:00:08]} 4. Ba4 {[%emt 0:00:29]} Nf6 {[%emt 0:00:04]} 5. O-O {[%emt 0:00:29]} b5 {[%emt 0:00:17]} 6. Bb3 {[%emt 0:00:15]} Bc5 {[%emt 0:00:05]} 7. d3 {[%emt 0:01:20]} O-O {[%emt 0:00:51]} 8. Bg5 {[%emt 0:07:25]} h6 {[%emt 0:02:38]} 9. Bh4 {[%emt 0:05:39]} Be7 {[%emt 0:06:32]} 10. Nbd2 {[%emt 0:05:15]} d6 {[%emt 0:02:09]} 11. c3 {[%emt 0:08:28]} Na5 {[%emt 0:02:15]} 12. Bc2 {[%emt 0:01:30]} c5 {[%emt 0:00:15]} 13. d4 {[%emt 0:06:45]} Nc6 {[%emt 0:03:32]} 14. d5 {[%emt 0:02:59]} Nb8 {[%emt 0:02:17]} 15. a4 {[%emt 0:06:07]} Qb6 {[%emt 0:26:43]} 16. axb5 {[%emt 0:07:07]} Qxb5 {[%emt 0:00:07]} 17. b3 {[%emt 0:01:57]} Nbd7 {[%emt 0:04:19]} 18. Nc4 {[%emt 0:01:21]} Qb8 {[%emt 0:02:36]} 19. Na5 {[%emt 0:02:29]} Bb7 {[%emt 0:06:31]} 20. Qe2 {[%emt 0:03:23]} Qc7 {[%emt 0:12:04]} 21. Bd3 {[%emt 0:04:21]} Nb8 {[%emt 0:00:21]} 22. Rfb1 {[%emt 0:02:45]} Bc8 {[%emt 0:04:09]} 23. Bc4 {[%emt 0:03:04]} g5 {[%emt 0:08:40]} 24. Bg3 {[%emt 0:01:13]} Nh5 {[%emt 0:00:56]} 25. Ne1 {[%emt 0:02:59]} Nf4 {[%emt 0:01:36]} 26. Bxf4 {[%emt 0:02:59]} exf4 {[%emt 0:01:07]} 27. Nd3 {[%emt 0:01:10]} Bf6 {[%emt 0:00:16]} 28. Rc1 {[%emt 0:01:02]} Bd7 {[%emt 0:01:51]} 29. Ra2 {[%emt 0:05:46]} Bb5 {[%emt 0:07:24]} 30. b4 {[%emt 0:04:49]} Nd7 {[%emt 0:01:56]} 31. Rac2 {[%emt 0:03:16]} Nb6 {[%emt 0:02:45]} 32. Bxb5 {[%emt 0:01:28]} axb5 {[%emt 0:00:02]} 33. Nc6 {[%emt 0:02:58]} c4 {[%emt 0:00:16]} 34. Ne1 {[%emt 0:00:22]} Rfe8 {[%emt 0:00:14]} 35. Nf3 {[%emt 0:00:51]} Nxd5 {[%emt 0:00:29]} 36. Ncd4 {[%emt 0:01:03]} Qd7 {[%emt 0:01:14]} 37. Nf5 {[%emt 0:01:25]} Qxf5 {[%emt 0:00:48]} 38. exf5 {[%emt 0:00:07]} Rxe2 {[%emt 0:00:04]} 39. Rxe2 {[%emt 0:00:05]} Nxc3 {[%emt 0:01:03]} 40. Rd2 {[%emt 0:00:00]} d5 {[%emt 0:00:00]} 41. h3 {[%emt 0:02:01]} d4 {[%emt 0:01:35]} 42. Kf1 {[%emt 0:03:37]} d3 {[%emt 0:02:01]} 43. Ne1 {[%emt 0:01:56]} Ne4 {[%emt 0:00:40]} 44. Nf3 {[%emt 0:02:39]} Nxd2+ {[%emt 0:00:59]} 45. Nxd2 {[%emt 0:00:07]} Ra1 {[%emt 0:00:33]} 46. Rxa1 {[%emt 0:00:48]} Bxa1 {[%emt 0:00:04]} 47. Ne4 c3 {[%emt 0:01:44]} 48. Nc5 {[%emt 0:01:34]} c2 {[%emt 0:00:27]} 49. Nxd3 {[%emt 0:00:17]} Bb2 {[%emt 0:00:11]} 0-1

[Event "FIDE WYCC Girls U18 2023"]
[Site "Montesilvano"]
[Date "2023.11.13"]
[Round "1.22"]
[White "Skarbarchuk, Tetyana"]
[Black "Saraci, Rinesa"]
[Result "1-0"]
[ECO "E15"]
[WhiteElo "2010"]
[BlackElo "1481"]
[Annotator "NA"]
[PlyCount "97"]
[EventDate "2023.11.13"]
[EventType "swiss"]
[EventCountry "ITA"]
[SourceTitle "playchess.com"]
[Source "ChessBase"]
[SourceQuality "1"]
[TimeControl "40/5400+30:1800+30"]

1. d4 {[%emt 0:00:04]} Nf6 {[%emt 0:00:14]} 2. c4 {[%emt 0:00:05]} e6 {[%emt 0:00:15]} 3. Nf3 {[%emt 0:00:13]} b6 {[%emt 0:00:29]} 4. g3 {[%emt 0:00:14]} Bb7 {[%emt 0:01:06]} 5. Bg2 {[%emt 0:00:15]} d5 {[%emt 0:01:55]} 6. cxd5 {[%emt 0:12:40]} Nxd5 {[%emt 0:08:21]} 7. O-O {[%emt 0:13:04]} Be7 {[%emt 0:05:49]} 8. Re1 {[%emt 0:08:51]} O-O {[%emt 0:04:52]} 9. e4 {[%emt 0:06:04]} Nf6 {[%emt 0:03:56]} 10. Nc3 {[%emt 0:05:16]} Nbd7 {[%emt 0:04:35]} 11. Bf4 {[%emt 0:07:54]} Bb4 {[%emt 0:10:08]} 12. Nd2 {[%emt 0:05:58]} h6 {[%emt 0:15:00]} 13. a3 {[%emt 0:16:23]} Bxc3 {[%emt 0:06:08]} 14. bxc3 {[%emt 0:00:05]} c5 {[%emt 0:00:39]} 15. Nc4 {[%emt 0:05:14]} Ne8 {[%emt 0:11:17]} 16. Rc1 {[%emt 0:12:39]} b5 {[%emt 0:04:48]} 17. Nd6 {[%emt 0:01:13]} Nxd6 {[%emt 0:01:24]} 18. Bxd6 {[%emt 0:00:06]} Re8 {[%emt 0:00:09]} 19. dxc5 {[%emt 0:00:10]} Rc8 {[%emt 0:01:35]} 20. c4 {[%emt 0:00:10]} bxc4 {[%emt 0:07:24]} 21. Rxc4 {[%emt 0:00:07]} Qa5 {[%emt 0:01:01]} 22. Ra4 {[%emt 0:02:14]} Qb5 {[%emt 0:01:27]} 23. Rxa7 {[%emt 0:00:07]} Nxc5 {[%emt 0:00:34]} 24. Bxc5 {[%emt 0:01:56]} Rxc5 {[%emt 0:00:10]} 25. Qb1 {[%emt 0:00:37]} Rb8 {[%emt 0:01:53]} 26. Qxb5 {[%emt 0:00:57]} Rxb5 {[%emt 0:00:07]} 27. Rc1 {[%emt 0:00:04]} Ba8 {[%emt 0:04:40]} 28. Bf1 {[%emt 0:00:35]} Rb3 {[%emt 0:01:15]} 29. Bg2 {[%emt 0:00:28]} Rb1 {[%emt 0:00:43]} 30. Rac7 {[%emt 0:00:20]} Rxc1+ {[%emt 0:01:48]} 31. Rxc1 {[%emt 0:00:06]} Kf8 {[%emt 0:00:12]} 32. h3 {[%emt 0:01:07]} f5 {[%emt 0:00:41]} 33. exf5 {[%emt 0:00:22]} Bxg2 {[%emt 0:00:12]} 34. Kxg2 {[%emt 0:00:05]} exf5 {[%emt 0:00:05]} 35. a4 {[%emt 0:00:06]} Kf7 {[%emt 0:01:44]} 36. a5 {[%emt 0:00:51]} Ra8 {[%emt 0:01:10]} 37. Rc5 {[%emt 0:00:58]} g6 {[%emt 0:00:37]} 38. Kf3 {[%emt 0:00:10]} Ra6 {[%emt 0:00:27]} 39. Ke3 {[%emt 0:00:14]} Re6+ {[%emt 0:00:24]} 40. Kd3 {[%emt 0:00:00]} Re1 {[%emt 0:00:00]} 41. Kc4 {[%emt 0:06:23]} Ra1 {[%emt 0:03:10]} 42. Kb5 {[%emt 0:01:11]} Rb1+ {[%emt 0:10:34]} 43. Kc6 {[%emt 0:00:51]} Ra1 {[%emt 0:02:28]} 44. Kb6 {[%emt 0:00:48]} Rb1+ {[%emt 0:03:42]} 45. Rb5 {[%emt 0:00:07]} Re1 {[%emt 0:02:01]} 46. a6 {[%emt 0:00:08]} Re6+ {[%emt 0:02:52]} 47. Ka5 {[%emt 0:00:09]} Re8 {[%emt 0:02:27]} 48. a7 {[%emt 0:00:50]} Re2 {[%emt 0:04:17]} 49. Ka6 {[%emt 0:00:16]} 1-0